bitfinex/quotes_BTCUSD_20240911
["timestamp","ask_amount","ask_price","bid_price","bid_amount"]
[1726020884422,0.001819,57053.0,57052.0,1.36962942]
[1726020884648,0.001819,57053.0,57052.0,1.55500734]
[1726020884857,0.001819,57053.0,57052.0,2.11150452]
[1726020885095,0.001819,57053.0,57052.0,2.17380452]
[1726020885301,0.001819,57053.0,57052.0,2.33797407]
[1726020885510,0.001819,57053.0,57052.0,2.41497407]
[1726020885728,0.001819,57053.0,57052.0,2.42797407]
[1726020885940,0.001819,57053.0,57052.0,2.45097407]
[1726020886149,0.000819,57053.0,57052.0,2.78753107]
[1726020886602,0.001819,57053.0,57052.0,2.80053107]
[1726020886808,0.000819,57053.0,57052.0,2.77453107]
[1726020887019,0.000819,57053.0,57052.0,2.42397407]
[1726020887233,0.001819,57053.0,57052.0,2.43797407]
[1726020887887,0.001819,57053.0,57052.0,2.80253107]
[1726020888324,0.001819,57053.0,57052.0,2.40797407]
[1726020888532,0.001819,57053.0,57052.0,2.40597407]
[1726020888738,0.001819,57053.0,57052.0,2.42197407]
[1726020889616,0.000819,57053.0,57052.0,2.40597407]
[1726020890046,0.001819,57053.0,57052.0,2.41997407]
[1726020892919,0.000819,57053.0,57052.0,2.40597407]
[1726020893131,0.001819,57053.0,57052.0,2.40597407]
[1726020893573,0.000819,57053.0,57052.0,2.40597407]
[1726020893793,0.001819,57053.0,57052.0,2.41997407]
[1726020893981,0.001819,57053.0,57052.0,2.40597407]
[1726020894238,0.001819,57053.0,57052.0,2.41997407]
[1726020894681,0.001819,57053.0,57052.0,2.42197407]
[1726020894896,0.001819,57053.0,57052.0,2.41997407]
[1726020895565,0.001819,57053.0,57052.0,2.42197407]
[1726020896230,0.001819,57053.0,57052.0,2.41997407]
[1726020897331,0.001819,57053.0,57052.0,1.73117689]
[1726020897572,0.001819,57053.0,57052.0,1.36962942]
[1726020898752,0.001819,57053.0,57052.0,1.39262942]
[1726020900695,0.001819,57053.0,57052.0,2.0134266]
[1726020900899,0.0025207,57056.0,57055.0,1.318883]
[1726020901100,0.0025207,57056.0,57055.0,2.4042771]
[1726020901307,0.0025207,57056.0,57055.0,2.5042771]
[1726020902086,0.0025207,57056.0,57055.0,2.1517391]
[1726020902290,0.0025207,57056.0,57055.0,2.1537391]
[1726020902502,0.0025207,57056.0,57055.0,2.25187696]
[1726020902696,0.0025207,57056.0,57055.0,2.61641496]
[1726020903105,0.0025207,57056.0,57055.0,2.26587696]
[1726020903305,0.0025207,57056.0,57055.0,2.27987696]
[1726020904108,0.0025207,57056.0,57055.0,2.25187696]
[1726020904356,0.0025207,57056.0,57055.0,2.26587696]
[1726020904809,0.0025207,57056.0,57055.0,2.69037496]
[1726020905473,0.0025207,57056.0,57055.0,2.70437496]
[1726020905717,0.0025207,57056.0,57055.0,2.35383696]
[1726020905949,0.0025207,57056.0,57055.0,2.84367496]
[1726020905950,7e-07,57056.0,57055.0,2.84367496]
[1726020906166,4e-07,57065.0,57064.0,1.45799]
[1726020906392,4e-07,57065.0,57064.0,2.2927911]
[1726020906625,4e-07,57065.0,57064.0,2.9917571]
[1726020906838,4e-07,57065.0,57064.0,2.9937571]
[1726020907299,4e-07,57065.0,57064.0,3.0217571]
[1726020907541,4e-07,57065.0,57064.0,3.1520134]
[1726020907952,4e-07,57065.0,57064.0,3.1660134]
[1726020908382,4e-07,57065.0,57064.0,2.8175304]
[1726020909054,4e-07,57065.0,57064.0,2.25738133]
[1726020909268,4e-07,57065.0,57064.0,2.24538133]
[1726020909512,4e-07,57065.0,57064.0,2.24338133]
[1726020909722,4e-07,57065.0,57064.0,2.25738133]
[1726020909945,4e-07,57065.0,57064.0,2.25938133]
[1726020910856,4e-07,57065.0,57064.0,1.36932393]
[1726020911096,4e-07,57065.0,57064.0,1.73064203]
[1726020911317,4e-07,57065.0,57064.0,2.08112503]
[1726020911749,4e-07,57065.0,57064.0,2.08312503]
[1726020911967,4e-07,57065.0,57064.0,1.73064203]
[1726020912187,4e-07,57065.0,57064.0,1.39232393]
[1726020912442,0.1430004,57065.0,57064.0,1.32669]
[1726020912672,0.1430004,57065.0,57064.0,1.35469]
[1726020913086,0.1430004,57065.0,57064.0,1.34069]
[1726020913338,4e-07,57065.0,57064.0,1.52606792]
[1726020913575,4e-07,57065.0,57064.0,1.7340081]
[1726020914035,4e-07,57065.0,57064.0,2.1074911]
[1726020914246,4e-07,57065.0,57064.0,2.1534911]
[1726020914449,4e-07,57065.0,57064.0,2.1674911]
[1726020914676,4e-07,57065.0,57064.0,2.34366065]
[1726020915309,4e-07,57065.0,57064.0,2.69414365]
[1726020915516,4e-07,57065.0,57064.0,2.34366065]
[1726020915732,4e-07,57065.0,57064.0,2.32966065]
[1726020915953,4e-07,57065.0,57064.0,2.34166065]
[1726020916426,4e-07,57065.0,57064.0,2.31166065]
[1726020916856,4e-07,57065.0,57064.0,2.29966065]
[1726020917082,4e-07,57065.0,57064.0,2.31366065]
[1726020917333,4e-07,57065.0,57064.0,2.29766065]
[1726020917774,4e-07,57065.0,57064.0,2.64814365]
[1726020917999,4e-07,57065.0,57064.0,2.35766065]
[1726020918226,0.000818,57069.0,57066.0,1.033277]
[1726020918442,0.000818,57069.0,57066.0,2.3818987]
[1726020919100,0.000818,57069.0,57066.0,2.40797013]
[1726020919309,0.000818,57069.0,57066.0,2.42197013]
[1726020919767,0.000818,57069.0,57066.0,2.77244113]
[1726020919983,0.000818,57069.0,57066.0,2.84066574]
[1726020920214,0.000818,57069.0,57066.0,2.85466574]
[1726020921141,7e-07,57067.0,57066.0,2.85466574]
[1726020921379,7e-07,57067.0,57066.0,2.72382983]
[1726020921607,0.000818,57069.0,57066.0,2.72382983]
[1726020921608,0.000818,57069.0,57068.0,0.968147]
[1726020921855,0.000818,57069.0,57068.0,1.87260969]
[1726020922329,0.000818,57069.0,57068.0,2.92398669]
[1726020922564,1e-06,57069.0,57068.0,2.92398669]
[1726020922800,1e-06,57069.0,57068.0,3.09498978]
[1726020923039,1e-06,57069.0,57068.0,3.10898978]
[1726020923743,1e-06,57069.0,57068.0,3.09498978]
[1726020923978,1e-06,57069.0,57068.0,3.43144878]
[1726020924428,1e-06,57069.0,57068.0,3.27444569]
[1726020924659,1e-06,57069.0,57068.0,3.28844569]
[1726020925867,1e-06,57069.0,57068.0,3.30244569]
[1726020926083,1e-06,57069.0,57068.0,3.45972252]
[1726020926326,1e-06,57069.0,57068.0,2.92898669]
[1726020926565,1e-06,57069.0,57068.0,2.92850098]
[1726020927972,0.0794387,57079.0,57068.0,2.92850098]
[1726020927973,0.0033387,57079.0,57078.0,0.875992]
[1726020928187,0.0033387,57079.0,57078.0,1.07493218]
[1726020928421,0.0033387,57079.0,57078.0,1.52532918]
[1726020928651,0.0033387,57079.0,57078.0,1.87572618]
[1726020929363,0.0033387,57079.0,57078.0,1.88972618]
[1726020929586,0.0033387,57079.0,57078.0,2.07989573]
[1726020930779,0.000817,57091.0,57087.0,0.207171]
[1726020931018,0.000817,57091.0,57087.0,1.23049518]
[1726020931249,0.000817,57091.0,57087.0,2.38152118]
[1726020931485,0.000817,57091.0,57087.0,2.5012891]
[1726020931746,4e-07,57088.0,57087.0,2.87203675]
[1726020931979,4e-07,57088.0,57087.0,2.89821826]
[1726020932214,4e-07,57088.0,57087.0,2.86996764]
[1726020932448,4e-07,57088.0,57087.0,2.87196764]
[1726020932680,0.0025207,57113.0,57087.0,2.87196764]
[1726020932681,0.05570936,57123.0,57111.0,0.03]
[1726020932922,0.2405594,57133.0,57132.0,0.03]
[1726020932923,0.0021594,57133.0,57132.0,0.03]
[1726020933156,0.0021594,57133.0,57132.0,1.85452976]
[1726020933398,0.00183243,57133.0,57132.0,2.0863139]
[1726020933660,0.00402023,57133.0,57132.0,2.4363799]
[1726020933930,0.1405,57146.0,57138.0,0.267014]
[1726020934165,0.00023332,57157.0,57155.0,0.874812]
[1726020934393,0.00023332,57157.0,57155.0,1.18318992]
[1726020934623,0.00023332,57157.0,57155.0,1.86236899]
[1726020935327,0.00023332,57157.0,57155.0,1.87703393]
[1726020935578,0.00023332,57157.0,57155.0,1.32706607]
[1726020935803,0.00023332,57157.0,57155.0,1.51244399]
[1726020936040,0.00023332,57157.0,57155.0,1.89236899]
[1726020936275,0.0001,57159.0,57155.0,1.89236899]
[1726020936276,0.0001,57159.0,57158.0,0.379907]
[1726020936583,0.0001,57159.0,57158.0,1.55361418]
[1726020936819,0.0797,57173.0,57172.0,0.17491]
[1726020937050,0.0797,57173.0,57172.0,1.50072124]
[1726020937751,0.0797,57173.0,57172.0,1.60072124]
[1726020937988,0.0797,57173.0,57172.0,1.41097236]
[1726020938448,0.0797,57173.0,57168.0,0.349841]
[1726020938657,0.0797,57173.0,57162.0,0.1]
[1726020938895,0.0797,57173.0,57172.0,0.008]
[1726020939105,0.254607,57173.0,57172.0,0.008]
[1726020939335,0.254607,57173.0,57162.0,0.18796]
[1726020939336,0.174921,57169.0,57163.0,0.174936]
[1726020939535,0.174921,57169.0,57162.0,0.18796]
[1726020939536,0.0797,57166.0,57162.0,0.08796]
[1726020939754,0.0797,57166.0,57162.0,0.262899]
[1726020939991,0.174932,57165.0,57162.0,0.08796]
[1726020940422,0.00437354,57164.0,57162.0,0.08796]
[1726020940629,0.00437354,57165.0,57162.0,0.08796]
[1726020940949,0.00437355,57165.0,57163.0,0.013]
[1726020941149,0.254635,57164.0,57163.0,0.013]
[1726020941365,0.25564018,57164.0,57163.0,0.013]
[1726020941566,0.43057518,57164.0,57163.0,0.013]
[1726020942205,0.43057518,57164.0,57163.0,0.174938]
[1726020942206,0.25564018,57164.0,57163.0,0.174938]
[1726020942686,0.25564018,57164.0,57162.0,0.08896]
[1726020942850,0.17594018,57163.0,57162.0,0.08796]
[1726020943501,0.17594018,57163.0,57162.0,0.262901]
[1726020943663,0.0817,57164.0,57162.0,0.08796]
[1726020944133,0.0797,57164.0,57162.0,0.08796]
[1726020944332,0.0797,57164.0,57162.0,0.10096]
[1726020944529,0.253338,57163.0,57162.0,0.10096]
[1726020944758,0.0784,57163.0,57162.0,0.10096]
[1726020945337,0.0784,57163.0,57162.0,0.625783]
[1726020945540,0.0784,57163.0,57162.0,0.975665]
[1726020945939,0.0608,57167.0,57166.0,0.874645]
[1726020946220,0.0608,57167.0,57166.0,0.897645]
[1726020946827,0.0784,57168.0,57167.0,0.524778]
[1726020947042,0.0784,57168.0,57167.0,0.89763]
[1726020947249,0.0648,57173.0,57172.0,0.17491]
[1726020947466,0.0040372,57177.0,57176.0,0.174898]
[1726020947668,0.0040372,57177.0,57176.0,0.874492]
[1726020947906,0.0040372,57177.0,57176.0,1.224289]
[1726020948148,0.0040372,57177.0,57176.0,1.247289]
[1726020949291,0.0040372,57177.0,57176.0,1.87302618]
[1726020949522,0.0040372,57177.0,57176.0,2.08319573]
[1726020949733,0.0040372,57177.0,57176.0,2.16319573]
[1726020949959,0.0040372,57177.0,57176.0,2.56899273]
[1726020950192,0.0022594,57179.0,57178.0,0.092]
[1726020950431,0.0040372,57195.0,57194.0,0.55453]
[1726020950622,0.0040372,57195.0,57194.0,1.61029718]
[1726020950827,0.0040372,57195.0,57194.0,1.05267]
[1726020951044,0.0040372,57195.0,57194.0,0.1]
[1726020951256,0.0824372,57195.0,57194.0,0.62453]
[1726020951460,0.1472372,57195.0,57194.0,0.62453]
[1726020951758,0.1472372,57195.0,57194.0,0.1]
[1726020951971,0.1472372,57195.0,57194.0,0.174843]
[1726020952211,0.349614,57206.0,57194.0,0.011]
[1726020952426,0.174814,57204.0,57197.0,0.174832]
[1726020952640,0.349591,57210.0,57198.0,0.524493]
[1726020952864,0.349591,57210.0,57194.0,0.063454]
[1726020952865,0.349614,57206.0,57194.0,0.063454]
[1726020953096,0.174929,57199.0,57194.0,0.249296]
[1726020953328,0.174929,57199.0,57194.0,0.011]
[1726020953540,0.0001,57199.0,57194.0,0.174841]
[1726020953753,0.0001,57199.0,57197.0,0.007]
[1726020954406,0.0001,57199.0,57183.0,0.28334824]
[1726020954407,0.174842,57195.0,57190.0,0.174853]
[1726020954671,0.17484,57195.0,57194.0,0.006]
[1726020954887,0.524522,57195.0,57194.0,0.006]
[1726020955100,0.349682,57195.0,57185.0,0.349741]
[1726020955313,0.174859,57189.0,57175.0,0.01459901]
[1726020955577,0.349696,57193.0,57183.0,0.174877]
[1726020955787,0.174859,57189.0,57183.0,0.174877]
[1726020955994,0.1432,57194.0,57177.0,0.34979]
[1726020956255,0.174869,57186.0,57181.0,0.174882]
[1726020956483,0.174869,57186.0,57178.0,0.34978]
[1726020956484,0.349714,57190.0,57177.0,0.34979]
[1726020956698,0.174866,57187.0,57180.0,0.349768]
[1726020957126,0.174866,57187.0,57182.0,0.174879]
[1726020957784,0.174863,57188.0,57182.0,0.174879]
[1726020958001,0.17594018,57188.0,57183.0,0.174876]
[1726020958910,0.17594018,57188.0,57183.0,0.052464]
[1726020959121,0.17594018,57188.0,57185.0,0.174869]
[1726020959389,0.17594018,57188.0,57186.0,0.174867]
[1726020959615,0.35080218,57188.0,57183.0,0.174876]
[1726020959842,0.35080218,57188.0,57181.0,0.349764]
[1726020959843,0.17594018,57188.0,57184.0,0.174872]
[1726020960068,0.174869,57186.0,57183.0,0.014]
[1726020960279,0.34973,57187.0,57183.0,0.014]
[1726020960508,0.174874,57184.0,57183.0,0.014]
[1726020960984,0.0784,57183.0,57172.0,0.1]
[1726020961207,0.174893,57178.0,57165.0,0.349864]
[1726020961438,0.174905,57174.0,57170.0,0.174915]
[1726020961629,0.08277293,57173.0,57169.0,0.174918]
[1726020961894,0.17594018,57172.0,57164.0,0.349868]
[1726020962120,0.17594018,57172.0,57168.0,0.174922]
[1726020962560,0.17594018,57172.0,57162.0,0.08796]
[1726020962561,0.00437314,57171.0,57162.0,0.08796]
[1726020962783,0.253338,57163.0,57162.0,0.08796]
[1726020963022,0.95309,57163.0,57162.0,0.08796]
[1726020963233,0.77915418,57163.0,57162.0,0.08796]
[1726020963450,1.12903018,57163.0,57162.0,0.08796]
[1726020963681,0.77915418,57163.0,57162.0,0.08796]
[1726020963905,0.77915418,57163.0,57162.0,0.10096]
[1726020964208,1.12903018,57163.0,57162.0,0.10096]
[1726020964447,1.54370618,57163.0,57162.0,0.11496]
[1726020964658,1.54370618,57163.0,57162.0,0.10096]
[1726020964866,1.54370618,57163.0,57162.0,0.10996]
[1726020965111,0.84395418,57163.0,57162.0,0.09696]
[1726020965320,0.1432,57163.0,57162.0,0.09696]
[1726020965531,0.1432,57163.0,57162.0,0.281901]
[1726020965759,0.1432,57163.0,57162.0,0.10696]
[1726020965984,0.1432,57163.0,57162.0,0.271901]
[1726020966207,0.174923,57168.0,57162.0,0.271901]
[1726020966208,0.349823,57172.0,57162.0,0.1593027]
[1726020966420,0.17594018,57171.0,57164.0,0.174932]
[1726020966631,0.17594018,57171.0,57165.0,0.17493]
[1726020966632,0.35085618,57171.0,57165.0,0.17493]
[1726020966812,0.17594018,57171.0,57165.0,0.17493]
[1726020967100,0.174921,57169.0,57163.0,0.349875]
[1726020967337,0.17594018,57171.0,57162.0,0.08796]
[1726020967338,0.174938,57163.0,57162.0,0.08796]
[1726020967581,0.524814,57163.0,57162.0,0.08796]
[1726020967810,0.174938,57163.0,57162.0,0.08796]
[1726020968024,0.70075418,57163.0,57162.0,0.08796]
[1726020968416,0.70075418,57163.0,57162.0,0.09696]
[1726020968889,0.70075418,57163.0,57162.0,0.08796]
[1726020968890,0.17594018,57163.0,57162.0,0.08796]
[1726020969099,0.17594018,57163.0,57162.0,0.262901]
[1726020969311,0.493018,57173.0,57162.0,0.09796]
[1726020969312,0.02741586,57167.0,57162.0,0.09796]
[1726020969523,0.174938,57163.0,57162.0,0.09796]
[1726020969737,0.17594018,57163.0,57162.0,0.09996]
[1726020969952,0.17594018,57163.0,57162.0,0.08796]
[1726020970164,0.02741586,57167.0,57162.0,0.446842]
[1726020970386,0.02741586,57167.0,57164.0,0.174933]
[1726020971120,0.02741586,57167.0,57165.0,0.349864]
[1726020971325,0.02741586,57167.0,57166.0,0.174929]
[1726020971542,0.174935,57164.0,57162.0,0.08796]
[1726020971770,0.001,57167.0,57162.0,0.2659]
[1726020971984,0.001,57167.0,57164.0,0.001636]
[1726020971985,0.95306,57165.0,57164.0,0.001636]
[1726020972201,1.12900018,57165.0,57164.0,0.001636]
[1726020972644,0.42927218,57165.0,57164.0,0.001636]
[1726020972887,0.0784,57165.0,57164.0,0.001636]
[1726020973110,0.001,57167.0,57164.0,0.17657]
[1726020973327,0.001,57167.0,57166.0,0.174929]
[1726020974002,0.174919,57170.0,57164.0,0.177569]
[1726020974257,0.35086118,57169.0,57164.0,0.002636]
[1726020974479,0.87466,57165.0,57164.0,0.002636]
[1726020974774,0.87466,57165.0,57164.0,0.001636]
[1726020974775,0.70073618,57165.0,57164.0,0.001636]
[1726020974991,0.35087218,57165.0,57164.0,0.001636]
[1726020975221,0.89230854,57165.0,57164.0,0.001636]
[1726020975425,1.59641023,57165.0,57164.0,0.001636]
[1726020975655,1.94627423,57165.0,57164.0,0.001636]
[1726020975897,1.94627423,57165.0,57164.0,0.002636]
[1726020976337,0.001,57160.0,57159.0,0.001638]
[1726020976538,0.032,57155.0,57143.0,0.52782518]
[1726020976752,1.83410067,57155.0,57143.0,0.52782518]
[1726020976968,1.83410067,57155.0,57131.0,0.0049726]
[1726020976969,2.18402567,57155.0,57131.0,0.0049726]
[1726020977199,2.18202567,57155.0,57138.0,0.00021043]
[1726020977428,1.80210067,57155.0,57137.0,0.35003]
[1726020977685,1.85952626,57155.0,57140.0,0.350014]
[1726020977902,1.62405038,57155.0,57141.0,0.00021043]
[1726020978132,1.59762479,57155.0,57154.0,0.0036204]
[1726020978362,1.84997303,57155.0,57154.0,0.0026204]
[1726020978783,1.84997303,57155.0,57154.0,0.0036204]
[1726020978784,1.85097303,57155.0,57154.0,0.0036204]
[1726020979214,1.82097303,57155.0,57154.0,0.0036204]
[1726020979424,1.84010067,57155.0,57154.0,0.0046204]
[1726020980303,1.81010067,57155.0,57154.0,0.0046204]
[1726020980771,0.85252718,57155.0,57154.0,0.0046204]
[1726020981046,1.20245218,57155.0,57154.0,0.0046204]
[1726020981289,0.50260218,57155.0,57154.0,0.0046204]
[1726020981520,0.41620218,57155.0,57154.0,0.0036204]
[1726020981740,1.11605218,57155.0,57154.0,0.0036204]
[1726020981963,0.42220218,57155.0,57154.0,0.0036204]
[1726020982188,0.18294018,57155.0,57154.0,0.0036204]
[1726020982370,0.17594018,57155.0,57154.0,0.00283083]
[1726020982598,0.0794,57159.0,57156.0,0.00021043]
[1726020982824,0.414197,57160.0,57154.0,0.0026204]
[1726020982825,0.17594018,57158.0,57155.0,0.00021043]
[1726020983043,0.174962,57155.0,57154.0,0.0026204]
[1726020983253,0.180962,57155.0,57154.0,0.0036204]
[1726020983670,0.177962,57155.0,57154.0,0.0026204]
[1726020984315,0.003,57155.0,57154.0,0.0026204]
[1726020984527,0.003,57155.0,57154.0,0.0086204]
[1726020984960,0.174956,57157.0,57154.0,0.0086204]
[1726020985430,0.17594018,57158.0,57155.0,0.00021043]
[1726020985640,0.17594018,57158.0,57155.0,0.17517043]
[1726020986099,0.174957,57157.0,57154.0,0.0172584]
[1726020986336,0.35089518,57158.0,57154.0,0.01746883]
[1726020986550,0.35089518,57158.0,57154.0,0.01046883]
[1726020986984,0.35089518,57158.0,57155.0,0.004]
[1726020988118,0.2460193,57158.0,57155.0,0.00421043]
[1726020988346,0.2460193,57158.0,57155.0,0.00021043]
[1726020988577,1.016212,57155.0,57154.0,0.0042584]
[1726020988805,1.57386675,57155.0,57154.0,0.0082584]
[1726020989065,1.92379175,57155.0,57154.0,0.0082584]
[1726020989289,1.92300218,57155.0,57154.0,0.0042584]
[1726020990193,1.92379175,57155.0,57154.0,0.0042584]
[1726020990399,1.92679175,57155.0,57154.0,0.0052584]
[1726020991282,1.92800218,57155.0,57154.0,0.0062584]
[1726020991512,1.93300218,57155.0,57154.0,0.0072584]
[1726020992499,1.92800218,57155.0,57154.0,0.0062584]
[1726020992900,1.93300218,57155.0,57154.0,0.0072584]
[1726020994394,0.42620218,57155.0,57154.0,0.0072584]
[1726020994607,0.77612718,57155.0,57154.0,0.0072584]
[1726020994824,1.2143749,57155.0,57154.0,0.0072584]
[1726020995326,2.26914814,57155.0,57154.0,0.0072584]
[1726020995545,2.62086271,57155.0,57154.0,0.0072584]
[1726020995758,2.62007314,57155.0,57154.0,0.0072584]
[1726020995982,2.62086271,57155.0,57154.0,0.0072584]
[1726020996431,2.62086271,57155.0,57154.0,0.0062584]
[1726020996432,2.3307249,57155.0,57154.0,0.0062584]
[1726020996649,2.34544948,57155.0,57154.0,0.0062584]
[1726020996870,1.8263999,57155.0,57154.0,0.0062584]
[1726020997102,1.8203999,57155.0,57154.0,0.0042584]
[1726020997345,1.82218947,57155.0,57154.0,0.0042584]
[1726020997560,1.83618947,57155.0,57154.0,0.0052584]
[1726020997783,1.85018947,57155.0,57154.0,0.0062584]
[1726020998016,1.85100847,57155.0,57154.0,0.0062584]
[1726020998239,1.82300847,57155.0,57154.0,0.0042584]
[1726020998688,1.85100847,57155.0,57154.0,0.0062584]
[1726020998870,2.03540847,57155.0,57154.0,0.0062584]
[1726020999341,2.38533347,57155.0,57154.0,0.0062584]
[1726021001155,2.03540847,57155.0,57154.0,0.0062584]
[1726021001379,2.3845439,57155.0,57154.0,0.0062584]
[1726021003429,2.7344689,57155.0,57154.0,0.0062584]
[1726021003661,0.77844724,57132.0,57131.0,0.0049726]
[1726021003879,1.30445342,57132.0,57131.0,0.0049726]
[1726021004083,1.65451942,57132.0,57131.0,0.0049726]
[1726021004311,0.70103918,57132.0,57131.0,0.0049726]
[1726021004746,1.05110518,57132.0,57131.0,0.0049726]
[1726021004973,1.1404279,57132.0,57131.0,0.0109726]
[1726021005449,1.1504279,57132.0,57131.0,0.0059726]
[1726021005636,1.1394279,57132.0,57131.0,0.0059726]
[1726021005850,1.1484279,57132.0,57131.0,0.0059726]
[1726021006056,0.7983619,57132.0,57131.0,0.0059726]
[1726021007342,0.83579543,57132.0,57131.0,0.0059726]
[1726021007566,0.74747271,57132.0,57131.0,0.0059726]
[1726021008091,0.72003918,57132.0,57131.0,0.0059726]
[1726021008527,1.07010518,57132.0,57131.0,0.0059726]
[1726021008944,0.72003918,57132.0,57131.0,0.0059726]
[1726021010793,0.71103918,57132.0,57131.0,0.0066106]
[1726021010947,0.70103918,57132.0,57131.0,0.0066106]
[1726021011153,0.70403918,57132.0,57131.0,0.0066106]
[1726021011720,0.70103918,57132.0,57131.0,0.0066106]
[1726021011932,0.70203918,57132.0,57131.0,0.0066106]
[1726021012164,1.05210518,57132.0,57131.0,0.0066106]
[1726021013114,0.70203918,57132.0,57131.0,0.0066106]
[1726021013731,0.35197318,57132.0,57131.0,0.0066106]
[1726021014385,0.70203918,57132.0,57131.0,0.0066106]
[1726021014601,0.35197318,57132.0,57131.0,0.0051744]
[1726021014816,0.17694018,57132.0,57131.0,0.7682184]
[1726021015020,0.17694018,57132.0,57131.0,0.59339283]
[1726021016273,0.17694018,57132.0,57131.0,0.24332083]
[1726021016521,0.17694018,57132.0,57131.0,0.59339283]
[1726021016995,0.17694018,57132.0,57131.0,0.94346483]
[1726021018768,0.17694018,57132.0,57131.0,0.59339283]
[1726021019012,0.1946342,57132.0,57131.0,0.24332083]
[1726021019241,0.1946342,57132.0,57131.0,0.59339283]
[1726021019687,0.1946342,57132.0,57131.0,0.24332083]
[1726021019930,0.1946342,57132.0,57131.0,0.0051744]
[1726021020155,0.1946342,57132.0,57131.0,0.00538483]
[1726021020399,0.17694018,57132.0,57131.0,0.53049283]
[1726021020594,0.17694018,57132.0,57131.0,0.88056483]
[1726021020595,0.001,57132.0,57131.0,0.88056483]
[1726021021681,0.17694018,57132.0,57131.0,0.00538483]
[1726021021904,0.2296389,57132.0,57131.0,0.00538483]
[1726021022553,0.2296389,57132.0,57131.0,0.18042083]
[1726021022759,0.17694018,57132.0,57131.0,0.88056483]
[1726021023174,0.001,57132.0,57131.0,0.96306483]
[1726021024258,0.001,57132.0,57131.0,0.61299283]
[1726021024465,0.001,57132.0,57131.0,0.26292083]
[1726021024921,0.19454258,57132.0,57131.0,0.00538483]
[1726021025140,0.19454258,57132.0,57131.0,0.88056483]
[1726021025141,0.001,57132.0,57131.0,0.88056483]
[1726021026656,0.001,57132.0,57131.0,0.8803544]
[1726021026867,0.001,57132.0,57131.0,0.88056483]
[1726021027078,0.001,57132.0,57131.0,0.8803544]
[1726021027547,0.001,57132.0,57131.0,0.88056483]
[1726021028863,0.001,57132.0,57131.0,0.53049283]
[1726021029072,0.001,57132.0,57131.0,0.88056483]
[1726021029542,0.001,57132.0,57131.0,1.31313683]
[1726021029755,0.001,57132.0,57131.0,1.49369698]
[1726021029986,0.001,57132.0,57131.0,1.39903683]
[1726021030474,0.4768,57146.0,57145.0,0.32060343]
[1726021030706,0.52782518,57153.0,57152.0,0.17518243]
[1726021030926,0.17594018,57153.0,57152.0,0.00021043]
[1726021031603,0.000819,57154.0,57153.0,0.17517843]
[1726021031818,0.000819,57154.0,57153.0,0.52551513]
[1726021032038,0.000819,57154.0,57153.0,0.87545213]
[1726021032603,0.000819,57154.0,57153.0,1.22538913]
[1726021032838,0.000819,57154.0,57153.0,1.37338913]
[1726021033065,0.000819,57154.0,57153.0,1.02345213]
[1726021033296,0.000819,57154.0,57153.0,1.02545213]
[1726021033749,0.000819,57154.0,57153.0,1.02945213]
[1726021034408,0.000819,57154.0,57153.0,1.02345213]
[1726021034664,0.001819,57154.0,57153.0,1.03145213]
[1726021034892,0.001819,57154.0,57153.0,1.03545213]
[1726021035119,0.001819,57154.0,57153.0,1.38138913]
[1726021035618,0.002819,57154.0,57153.0,1.40838913]
[1726021035857,0.002819,57154.0,57153.0,1.40038913]
[1726021036100,0.002819,57154.0,57153.0,1.74632613]
[1726021036101,0.000819,57154.0,57153.0,1.74632613]
[1726021036325,0.002819,57154.0,57153.0,1.85932613]
[1726021036567,0.002819,57154.0,57153.0,2.21343586]
[1726021036797,0.002819,57154.0,57153.0,1.86349886]
[1726021037024,0.001819,57154.0,57153.0,1.50038913]
[1726021037238,0.001819,57154.0,57153.0,1.12745213]
[1726021037479,0.17875918,57154.0,57153.0,0.01461013]
[1726021037764,0.370682,57154.0,57153.0,0.0103997]
[1726021037999,0.721613,57154.0,57153.0,0.0143997]
[1726021038215,0.721613,57154.0,57153.0,0.0103997]
[1726021038216,0.802713,57154.0,57153.0,0.0103997]
[1726021038423,1.152644,57154.0,57153.0,0.0103997]
[1726021038642,1.152644,57154.0,57153.0,0.0143997]
[1726021038643,1.43634774,57154.0,57153.0,0.0143997]
[1726021038858,1.49854774,57154.0,57153.0,0.0043997]
[1726021039085,1.93590232,57154.0,57153.0,0.0003997]
[1726021039288,2.03590232,57154.0,57153.0,0.0043997]
[1726021039500,2.04590232,57154.0,57153.0,0.0043997]
[1726021039932,2.04590232,57154.0,57153.0,0.0003997]
[1726021040154,2.05990232,57154.0,57153.0,0.0013997]
[1726021040799,2.04590232,57154.0,57153.0,0.0003997]
[1726021041012,2.06050246,57154.0,57153.0,0.0003997]
[1726021041246,1.50872074,57142.0,57141.0,0.0031367]
[1726021041493,1.68466092,57142.0,57141.0,0.0031367]
[1726021041963,1.71209176,57142.0,57141.0,0.0031367]
[1726021042433,0.98208176,57142.0,57141.0,0.0031367]
[1726021042656,0.70094718,57142.0,57141.0,0.0031367]
[1726021042880,1.32261374,57142.0,57141.0,0.0041367]
[1726021043109,1.32961374,57142.0,57141.0,0.0041367]
[1726021043362,1.70961874,57142.0,57141.0,0.0041367]
[1726021044528,2.05962374,57142.0,57141.0,0.0041367]
[1726021044760,2.27292374,57142.0,57141.0,0.0041367]
[1726021044983,2.37471331,57142.0,57141.0,0.0041367]
[1726021045643,2.36771331,57142.0,57141.0,0.0031367]
[1726021045896,2.36771331,57142.0,57141.0,0.0047747]
[1726021046135,2.37371331,57142.0,57141.0,0.0057747]
[1726021046384,2.43972944,57142.0,57141.0,0.0057747]
[1726021046622,2.43972944,57142.0,57131.0,0.001638]
[1726021046623,0.875165,57132.0,57131.0,0.001638]
[1726021046884,1.05110518,57132.0,57131.0,0.001638]
[1726021047798,0.028,57142.0,57131.0,0.143638]
[1726021048028,0.014,57142.0,57141.0,0.175005]
[1726021048253,0.349971,57148.0,57142.0,0.00021043]
[1726021048491,0.349987,57145.0,57140.0,0.00021043]
[1726021048709,0.349987,57145.0,57138.0,0.175013]
[1726021048710,0.175,57143.0,57139.0,0.00021043]
[1726021048935,0.35436248,57145.0,57139.0,0.17522043]
[1726021049168,0.42300584,57144.0,57139.0,0.17522043]
[1726021049405,0.001,57142.0,57139.0,0.17522043]
[1726021049649,0.17594018,57141.0,57135.0,0.00021043]
[1726021049884,0.350031,57138.0,57131.0,0.08194843]